Cogmind - Beta 17 @@@ ROGUE MODE // 2026.08.14 @ 12:02:56 Player: Fedop Result: Destroyed by S-27 Virus with Autogun Performance ------------- Evolutions (4) 2000 Regions Visited (9) 1800 Robots Destroyed (69) 345 Value Destroyed (2100) 2100 Prototype IDs (36) 720 Alien Tech Used (0) 0 Bonus (340) 340 TOTAL SCORE: 7305 Bonus ------- Follower Combat Kills 40 Aligned with FarCom 300 Cogmind --------- Core Integrity 0/850 Matter 138/300 Energy 201/300 System Corruption 0% Temperature Cool (0) Movement Hovering (230) Ox3 Location -6/Factory Parts ------- > --- POWER (1) -------- Angular Momentum Engine > --- PROPULSION (4) --- Improved Airjet > --- UTILITY (7) ------ Advanced Melee Analysis Suite Advanced Melee Analysis Suite Core Analyzer Improved Actuator Array Hardened Medium Armor Plating > --- WEAPON (3) ------- Impact Mace Heavy Pick > --- INVENTORY (5) ---- Thermal Shield Improved Hardlight Generator Peak State ------------ > --- POWER ------------ Enhanced Nuclear Core > --- PROPULSION ------- Flying Fortress v7 > --- UTILITY ---------- Improved Heat Sink Large Storage Unit Advanced Targeting Computer Particle Charger Improved Propulsion Shielding Improved Medium Armor Plating Improved Shield Generator > --- WEAPON ----------- Spread Laser Spread Laser Improved Spread Laser > --- INVENTORY -------- Enhanced Nuclear Core Improved Titanium Leg Improved Titanium Leg Improved Titanium Leg Improved Titanium Leg Thermal Generator Cryofiber Web Coolant Injector Improved Medium Armor Plating Reflective Plating Spread Laser Rocket Launcher Impact Mace [Rating: 71] Favorites ----------- Power Ion Engine Engine Ion Engine Power Core Enhanced Nuclear Core Propulsion Improved Titanium Leg Treads Advanced Treads Leg Improved Titanium Leg Wheel Wheel Hover Unit Improved Airjet Flight Unit Flying Fortress v7 Utility Large Storage Unit Device Cryofiber Web Storage Large Storage Unit Processor Advanced Targeting Computer Protection Improved Medium Armor Plating Weapon Spread Laser Energy Gun Spread Laser Energy Cannon Advanced Beam Cannon Ballistic Gun Assault Rifle Launcher Gamma Bomb Array Impact Weapon Impact Mace Piercing Weapon Heavy Pick Build | -11 -10 -10 -10 -9 -8 -7 -6 -6 -6 ------- Run | Yrd Mat Min Exi Min Mat Fac Fac Was Fac Slots Evolved 8 | . . . . . 4 2 2 . . Power . | . . . . . . . . . . Propulsion 2 | . . . . . 2 . . . . Utility 5 | . . . . . 2 1 2 . . Weapon 1 | . . . . . . 1 . . . Parts Attached 74 | 6 7 1 3 . 9 16 17 2 13 Power 6 | 1 . . 1 . 2 1 . . 1 Engine 5 | 1 . . 1 . 2 . . . 1 Core 1 | . . . . . . 1 . . . Reactor . | . . . . . . . . . . Propulsion 13 | 2 . 1 . . 1 . 7 . 2 Treads 2 | . . . . . . . 2 . . Leg 4 | . . . . . . . 4 . . Wheel 3 | 2 . 1 . . . . . . . Hover 1 | . . . . . . . . . 1 Flight 3 | . . . . . 1 . 1 . 1 Utility 34 | 1 2 . 1 . 6 7 8 . 9 Device 16 | . 1 . . . 1 4 6 . 4 Storage 2 | 1 . . 1 . . . . . . Processor 6 | . 1 . . . 1 . 1 . 3 Hackware . | . . . . . . . . . . Protection 10 | . . . . . 4 3 1 . 2 Artifact . | . . . . . . . . . . Weapon 21 | 2 5 . 1 . . 8 2 2 1 Energy Gun 13 | 1 3 . 1 . . 5 2 1 . Energy Cannon 3 | . 2 . . . . 1 . . . Ballistic Gun 1 | 1 . . . . . . . . . Ballistic Cannon . | . . . . . . . . . . Launcher 1 | . . . . . . . . 1 . Special Weapon . | . . . . . . . . . . Impact Weapon 2 | . . . . . . 2 . . . Slashing Weapon . | . . . . . . . . . . Piercing Weapon 1 | . . . . . . . . . 1 Special Melee Weapon . | . . . . . . . . . . Unidentified Prototypes 8 | . 1 . . . . 5 2 . . Parts Lost 15 | . . . . . . . 5 5 5 Power . | . . . . . . . . . . Propulsion 3 | . . . . . . . . 2 1 Utility 9 | . . . . . . . 4 1 4 Weapon 3 | . . . . . . . 1 2 . Highest Loss Streak 5 | . . . . . . . 2 5 2 To Critical Strikes . | . . . . . . . . . . Average Backups 8 | 2 4 5 4 7 13 14 11 12 4 Power 1 | . 1 1 . 1 2 . 1 1 . Propulsion 1 | . . 1 . 2 1 4 1 . . Utility 3 | . . . . 1 6 6 5 5 3 Weapon 2 | . 2 3 2 3 3 3 4 4 . Tool/Special . | . . . . . . . . . . Unused Backups 24 | . 4 . . . 6 8 . 5 1 Power 4 | . . . . . 1 1 . 2 . Propulsion 3 | . 2 . . . 1 . . . . Utility 13 | . 1 . . . 3 7 . 1 1 Weapon 4 | . 1 . . . 1 . . 2 . Tool/Special . | . . . . . . . . . . Average Slot Usage (%) 77 | . 98 100 98 100 70 75 97 61 34 Engine 6 | . 14 14 14 14 9 6 . . . Core 1 | . . . . . . . 6 3 . Leg 3 | . . . . . . . 19 11 . Wheel 8 | . 27 28 27 28 . . . . . Flight 2 | . . . . . 8 7 . . 1 Device 12 | . 10 14 7 . 8 13 22 18 12 Storage 5 | . 3 . 6 14 9 7 6 4 . Processor 10 | . 13 14 14 14 8 7 6 6 14 Protection 4 | . . . . . 9 8 9 2 1 Energy Gun 17 | . 23 28 27 28 18 20 19 10 . Peak Build Rating 71 | 6 10 9 13 13 51 67 71 67 48 Average Rating 35 | 4 8 9 10 13 47 61 56 42 25 On Entrance 24 | . 6 9 9 13 13 51 65 67 10 Avg Prop Armor Cover (%) 10 | . . . . . . . 6 6 17 Naked Turns . | . . . . . . . . . . Heaviest Build 65 | 14 16 12 31 31 44 55 65 58 27 Greatest Support 60 | 26 26 26 20 20 50 50 60 60 9 Greatest Overweight (x) 19 | 2 . . 3 1 13 1 19 2 2 Average Overweight (x) . | . . . . 1 . . . . . Largest Inventory Capacity 15 | 8 8 5 15 15 15 15 15 15 5 Average Capacity 10 | 6 5 5 9 15 15 15 15 12 5 Most Carried 15 | 4 8 5 10 10 15 15 15 15 5 Average Carried 9 | 2 4 5 4 10 13 14 11 11 4 Final Capacity 15 | 8 5 5 15 15 15 15 15 5 5 Final Carried 15 | 4 5 5 10 10 15 15 15 5 2 Class Distribution -------------------- 65% | Mutant 13% | Tank 8% | Skirmisher 7% | Gunner 4% | Commander-Mutant Dominant Class ---------------- Mutant | -10/Materials Mutant | -10/Mines Mutant | -10/Exiles Mutant | -9/Mines Mutant | -8/Materials Skirmisher | -7/Factory Tank | -6/Factory Mutant | -6/Waste Mutant | -6/Factory Resources | -11 -10 -10 -10 -9 -8 -7 -6 -6 -6 ----------- Run | Yrd Mat Min Exi Min Mat Fac Fac Was Fac Matter Collected 1115 | 179 170 16 . . 177 91 444 . 38 Remotely . | . . . . . . . . . . Salvage Created 2044 | . 474 36 . . 462 85 969 . 18 Parts 100 | . 30 4 . . 30 3 30 . 3 Haulers Intercepted 8 | . 2 . . . 4 1 1 . . Recyclers Shooed 2 | . . 1 . . . . 1 . . Parts Field Recycled . | . . . . . . . . . . Retrieved Matter . | . . . . . . . . . . Parts Self-Destructed . | . . . . . . . . . . Prevented . | . . . . . . . . . . Parts Restored . | . . . . . . . . . . Kills | -11 -10 -10 -10 -9 -8 -7 -6 -6 -6 ------- Run | Yrd Mat Min Exi Min Mat Fac Fac Was Fac Combat Hostiles Destroyed 45 | . 11 . . . 13 1 20 . . Guns 42 | . 9 . . . 13 1 19 . . AOE 2 | . 2 . . . . . . . . Classes Destroyed 15 | . 6 . . . 2 1 6 . . Worker 3 | . 2 . . . 1 . . . . Builder 4 | . 1 1 . . 1 1 . . . Tunneler 4 | . 1 1 . . . . 1 . 1 Hauler 8 | . 2 . . . 4 1 1 . . Recycler 1 | . . . . . . . 1 . . Mechanic 1 | . . . . . . . 1 . . Operator 1 | . . . . . . . 1 . . Watcher 2 | . . . . . 1 . 1 . . Swarmer 10 | . 3 . . . 7 . . . . Saboteur 1 | . . . . . . . 1 . . Grunt 26 | . 8 . . . 3 . 15 . . Brawler 1 | . . . . . . . 1 . . Sentry 4 | . . . . . 3 . 1 . . Hunter 2 | . . . . . . 1 1 . . Programmer 1 | . . . . . . . 1 . . Best Kill Streak 8 | . 3 2 . . 7 1 8 . 1 Combat Bots Only 7 | . 3 . . . 7 1 7 . . Max Kills in Single Turn 3 | . 3 2 . . 2 1 3 . 1 Gunslinging 1 | . . . . . 1 . 1 . . Exploded 2 | . 2 . . . . . . . . Melee . | . . . . . . . . . . Uniques/NPCs Destroyed . | . . . . . . . . . . Combat | -11 -10 -10 -10 -9 -8 -7 -6 -6 -6 -------- Run | Yrd Mat Min Exi Min Mat Fac Fac Was Fac Hostile Shots Fired 364 | . 27 . . . 43 22 165 5 102 Missed 129 | . 5 . . . 15 11 52 . 46 Hits 235 | . 22 . . . 28 11 113 5 56 Melee 5 | . . . . . . . . 5 . Projectile 230 | . 22 . . . 28 11 113 . 56 Critical Strikes 10 | . 1 . . . . . 4 3 2 Actively Blocked 2 | . . . . . . . 2 . . Damage Taken 3383 | . 287 . . 4 323 121 1514 233 901 Core 967 | . 89 . . . 20 6 259 113 480 Absorbed by Shields 80 | . . . . . . . 80 . . Redirected to Shielding 244 | . . . . . . . 142 . 102 Ignored by Resistances 241 | . . . . . 10 . 231 . . Regen/Repaired (Parts) 92 | . 62 . . . 30 . . . . Core Remaining (%) 89 | 100 . . . 64 96 99 . . . Volleys Fired 131 | . 25 3 . . 40 5 55 3 . Largest 3 | . 2 2 . . 2 3 3 3 . Hottest 220 | . 130 130 . . 130 205 220 220 . Shots Fired 312 | . 50 6 . . 80 12 155 9 . Gun 312 | . 50 6 . . 80 12 155 9 . Cannon . | . . . . . . . . . . Launcher . | . . . . . . . . . . Special . | . . . . . . . . . . Kinetic 3 | . 3 . . . . . . . . Thermal 309 | . 47 6 . . 80 12 155 9 . Explosive . | . . . . . . . . . . Electromagnetic . | . . . . . . . . . . Robot Hit Streak 26 | . 6 3 . . 26 10 26 12 . Robot Miss Streak 8 | . 6 4 . . 8 2 8 1 . Penetration Max . | . . . . . . . . . . Secondary Targets 6 | . . . . . 2 . 4 . . Max Gunslinging Chain 1 | . . . . . 1 . 1 . . Shots Hit Robots 271 | . 41 6 . . 71 12 130 9 2 Core Hits 402 | . 54 4 . 1 91 14 232 6 . Critical Kills . | . . . . . . . . . . Critical Parts Destroyed . | . . . . . . . . . . Critical Strikes 1 | . . . . . . . 1 . . Burn 1 | . . . . . . . 1 . . Melee Attacks 12 | . . . . . . 2 . . 10 Impact 5 | . . . . . . 2 . . 3 Slashing . | . . . . . . . . . . Piercing 7 | . . . . . . . . . 7 Sneak Attacks 2 | . . . . . . 1 . . 1 Combat Hostiles . | . . . . . . . . . . Follow-up Attacks . | . . . . . . . . . . Damage Inflicted 5492 | . 777 76 . 9 1043 347 2838 266 136 Guns 4805 | . 551 76 . . 1043 213 2656 266 . Cannons . | . . . . . . . . . . Explosions 403 | . 221 . . . . . 182 . . Melee 265 | . . . . . . 134 . . 131 Ramming 19 | . 5 . . 9 . . . . 5 Kinetic 24 | . 24 . . . . . . . . Thermal 5184 | . 748 76 . . 1043 213 2838 266 . Explosive . | . . . . . . . . . . Electromagnetic . | . . . . . . . . . . Impact 185 | . . . . . . 134 . . 51 Slashing . | . . . . . . . . . . Piercing 80 | . . . . . . . . . 80 Highest Corruption . | . . . . . . . . . . Average Corruption . | . . . . . . . . . . Corruption Purged . | . . . . . . . . . . Corruption Blocked . | . . . . . . . . . . Overload Shots . | . . . . . . . . . . Overflow Damage 160 | . . . . . . 94 . . 66 Projectiles . | . . . . . . . . . . Explosions . | . . . . . . . . . . Melee 160 | . . . . . . 94 . . 66 Knockbacks 1 | . 1 . . . . . . . . Impact 1 | . 1 . . . . . . . . Kinetic . | . . . . . . . . . . Secondary . | . . . . . . . . . . Self-Inflicted Damage 195 | . 26 . . 4 . . 163 . 2 Shots 3 | . 1 . . . . . 2 . . Rammed 3 | . 1 . . 1 . . . . 1 Targets Rammed 3 | . 1 . . 1 . . . . 1 Kicked . | . . . . . . . . . . Crushed . | . . . . . . . . . . Highest Temperature 378 | . 141 39 . . 378 349 376 . . Average Temperature 118 | . 41 21 . . 141 119 136 . . Received Heat Transfer 973 | . 147 . . . 99 24 640 . 63 Effects 5 | . . . . . 2 . 3 . . Interference 3 | . . . . . . . 3 . . Short Circuit 1 | . . . . . 1 . . . . Damage (minor) 1 | . . . . . 1 . . . . Siege Activations . | . . . . . . . . . . Martial Activations . | . . . . . . . . . . Shielding Activations . | . . . . . . . . . . Robots Disrupted . | . . . . . . . . . . Combat Hostiles . | . . . . . . . . . . Robots Corrupted . | . . . . . . . . . . Combat Hostiles . | . . . . . . . . . . Parts Fried 2 | . . . . . . 2 . . . Impact Corruptions 4 | . . . . . . 3 . . 1 Robots Melted 1 | . . . . . . . 1 . . Combat Hostiles 1 | . . . . . . . 1 . . Parts Melted 8 | . 1 . . . . . 7 . . Heat Transferred 6673 | . 927 141 . . 1285 230 3679 411 . Parts Sabotaged . | . . . . . . . . . . Parts Stolen . | . . . . . . . . . . Parts Stripped . | . . . . . . . . . . Power Chain Reactions . | . . . . . . . . . . Alert | -11 -10 -10 -10 -9 -8 -7 -6 -6 -6 ------- Run | Yrd Mat Min Exi Min Mat Fac Fac Was Fac Maximum Alert Level 1 | . 1 . . . 1 . 1 . . Low Security (%) 87 | 100 87 100 . 100 88 100 50 100 100 Level 1 12 | . 12 . . . 11 . 49 . . Level 2 . | . . . . . . . . . . Level 3 . | . . . . . . . . . . Level 4 . | . . . . . . . . . . Level 5 . | . . . . . . . . . . High Security . | . . . . . . . . . . Max Security . | . . . . . . . . . . Peak Influence 385 | . 217 58 . . 249 39 385 79 60 Initial 79 | . . 58 . . . 4 . 79 . Average 62 | . 104 30 . . 59 3 180 30 7 Influence Increases 1873 | . 432 10 . . 409 95 751 . 176 Destroy 0b10 Robot/C 920 | . 220 . . . 260 40 400 . . Destroy 0b10 Robot/NC 120 | . 30 10 . . 35 10 30 . 5 Destroy Leader 230 | . 64 . . . 60 22 84 . . Allied During Kill 10 | . . . . . . 10 . . . Successful Hack 49 | . 16 . . . 9 12 12 . . Disable Machine 90 | . 60 . . . . . 30 . . Anti-Garrison Action 150 | . . . . . . . 150 . . Destroy Structure 79 | . 27 . . . . 1 45 . 6 Partial Spotted 15 | . . . . . 15 . . . . Lose Combat Pursuer 210 | . 15 . . . 30 . . . 165 Influence Decreases 1829 | . 280 154 8 . 397 107 525 226 132 Entered New Map 257 | . . 94 8 . . 8 . 147 . Time Decay 1144 | . 280 60 . . 247 99 325 40 93 Lost Part 128 | . . . . . . . 50 39 39 Purge Threat 300 | . . . . . 150 . 150 . . Squads Dispatched 22 | . 3 . . . 2 5 10 . 2 Investigation 9 | . 2 . . . 1 1 4 . 1 Extermination 4 | . . . . . . 2 1 . 1 Reinforcement 4 | . 1 . . . . 2 1 . . Assault 2 | . . . . . . . 2 . . Garrison 3 | . . . . . 1 . 2 . . Intercept . | . . . . . . . . . . Searches Triggered . | . . . . . . . . . . Construction Impeded 1 | . . . . . . . 1 . . Haulers Reinforced . | . . . . . . . . . . Active Scanning Responses . | . . . . . . . . . . Cargo Convoy Interrupts . | . . . . . . . . . . Stealth | -11 -10 -10 -10 -9 -8 -7 -6 -6 -6 --------- Run | Yrd Mat Min Exi Min Mat Fac Fac Was Fac Distress Signals 5 | . 1 . . . 3 . . . 1 Communications Jammed . | . . . . . . . . . . Distress Signals . | . . . . . . . . . . Times Spotted 106 | . 17 . . . 22 5 35 6 21 Peak Tracking Total 9 | . 3 . . . 4 2 6 6 9 Tactical Retreats 9 | . 1 . . . 2 . . . 6 Traps | -11 -10 -10 -10 -9 -8 -7 -6 -6 -6 ------- Run | Yrd Mat Min Exi Min Mat Fac Fac Was Fac Traps Triggered 2 | . . . . . . . 1 . 1 Indirectly . | . . . . . . . . . . Trap Hack Attempts . | . . . . . . . . . . Triggered . | . . . . . . . . . . Disarmed . | . . . . . . . . . . Reprogrammed . | . . . . . . . . . . Reused . | . . . . . . . . . . Traps Extracted . | . . . . . . . . . . Installed . | . . . . . . . . . . Triggered . | . . . . . . . . . . Machines | -11 -10 -10 -10 -9 -8 -7 -6 -6 -6 ---------- Run | Yrd Mat Min Exi Min Mat Fac Fac Was Fac Machines Disabled 7 | . 4 . . . . . 3 . . Max in Single Turn 4 | . 4 . . . . . 2 . . Garrison Access 1 | . . . . . . . 1 . . Machines Repaired . | . . . . . . . . . . Machines Dismantled . | . . . . . . . . . . Machines Sabotaged . | . . . . . . . . . . Overloaded Fab Kills . | . . . . . . . . . . Hacking | -11 -10 -10 -10 -9 -8 -7 -6 -6 -6 --------- Run | Yrd Mat Min Exi Min Mat Fac Fac Was Fac Machines Accessed 32 | . 6 . 1 . 8 8 7 . 2 Terminals 15 | . 4 . . . 5 3 3 . . Fabricators 4 | . . . . . . 3 1 . . Repair Stations 4 | . 1 . . . 1 . 1 . 1 Recycling Units 5 | . 1 . . . 1 1 1 . 1 Scanalyzers 1 | . . . . . 1 . . . . Garrison Access 2 | . . . . . . 1 1 . . Total Hacks 77 | . 14 . 1 . 24 17 17 . 4 Successful 30 | . 6 . 1 . 13 6 4 . . Failed 46 | . 8 . . . 10 11 13 . 4 Catastrophic 13 | . 1 . . . 1 3 6 . 2 Database Lockouts 1 | . . . . . 1 . . . . Manual 10 | . 3 . 1 . 5 1 . . . Terminals 40 | . 9 . . . 15 8 8 . . Fabricators 6 | . . . . . . 4 2 . . Repair Stations 13 | . 4 . . . 3 . 4 . 2 Recycling Units 10 | . 1 . . . 1 4 2 . 2 Scanalyzers 5 | . . . . . 5 . . . . Garrison Access 2 | . . . . . . 1 1 . . Terminal Hacks 13 | . 1 . 1 . 6 2 3 . . Prototype ID Bank 3 | . . . . . 3 . . . . Branch Access Points 1 | . . . . . . . 1 . . Emergency Access Points 1 | . . . . . . 1 . . . Unreport Threat 2 | . . . . . 1 . 1 . . Locate Traps 2 | . . . . . 1 . 1 . . Hauler Manifests 1 | . . . . . 1 . . . . Registered Components 2 | . 1 . . . . 1 . . . Proto ID Catalog 1 | . . . 1 . . . . . . Fabricator Hacks 3 | . . . . . . 3 . . . Load Schematic 1 | . . . . . . 1 . . . Build 2 | . . . . . . 2 . . . Repair Station Hacks 7 | . 4 . . . 2 . 1 . . Scan Component 4 | . 2 . . . 1 . 1 . . Repair 3 | . 2 . . . 1 . . . . Recycling Unit Hacks 3 | . 1 . . . 1 1 . . . Report Inventory 3 | . 1 . . . 1 1 . . . Scanalyzer 4 | . . . . . 4 . . . . Insert Component 1 | . . . . . 1 . . . . Analyze 1 | . . . . . 1 . . . . Retrieve Study 2 | . . . . . 2 . . . . Garrison Access Hacks . | . . . . . . . . . . Unauthorized Hacks . | . . . . . . . . . . Terminals . | . . . . . . . . . . Fabricators . | . . . . . . . . . . Repair Stations . | . . . . . . . . . . Recycling Units . | . . . . . . . . . . Scanalyzers . | . . . . . . . . . . Garrison Access . | . . . . . . . . . . Data Cores Recovered 1 | . . . . . . . 1 . . Used . | . . . . . . . . . . Hacking Detections 28 | . 5 . . . 7 7 7 . 2 Full Trace Events 10 | . 2 . . . 2 1 4 . 1 Feedback Events . | . . . . . . . . . . Feedback Blocked . | . . . . . . . . . . Robot Schematics Acquired . | . . . . . . . . . . Robots Built 4 | . . . . . . 4 . . . Authchips . | . . . . . . . . . . Time 134 | . . . . . . 134 . . . Total Robot Build Rating 16 | . . . . . . 16 . . . Part Schematics Acquired 1 | . . . . . 1 . . . . Parts Built 2 | . . . . . . 2 . . . Authchips . | . . . . . . . . . . Time 62 | . . . . . . 62 . . . Total Part Build Rating 4 | . . . . . . 4 . . . Part Studies Acquired 1 | . . . . . 1 . . . . Parts Repaired 3 | . 2 . . . 1 . . . . Time 84 | . 58 . . . 26 . . . . Parts Recycled . | . . . . . . . . . . Recycled Matter . | . . . . . . . . . . Retrieved Matter . | . . . . . . . . . . Retrieved Components . | . . . . . . . . . . Parts Scanalyzed 1 | . . . . . 1 . . . . Part Schematics Acquired 1 | . . . . . 1 . . . . Parts Damaged . | . . . . . . . . . . Bothacking | -11 -10 -10 -10 -9 -8 -7 -6 -6 -6 ------------ Run | Yrd Mat Min Exi Min Mat Fac Fac Was Fac Used RIF Installer . | . . . . . . . . . . Robots Hacked . | . . . . . . . . . . Non-combat . | . . . . . . . . . . Combat . | . . . . . . . . . . Robot Hacks Applied . | . . . . . . . . . . Relay Couplers Released 2 | . . . . . . . 2 . . Machine Destruction 2 | . . . . . . . 2 . . Fabnet Peak Effective % . | . . . . . . . . . . Robots Rewired . | . . . . . . . . . . Allies Hacked . | . . . . . . . . . . Hacks Repelled . | . . . . . . . . . . Allies | -11 -10 -10 -10 -9 -8 -7 -6 -6 -6 -------- Run | Yrd Mat Min Exi Min Mat Fac Fac Was Fac Total Allies 4 | . . . . . . 4 . . . Largest Group 4 | . . . . . . 4 . . . Highest-Rated Group 48 | . . . . . . 48 . . . Highest-Rated Ally 12 | . . . . . . 12 . . . Total Orders 4 | . . . . . . . . . 4 ROAM 1 | . . . . . . . . . 1 EXPLORE 3 | . . . . . . . . . 3 Ally Attacks 6 | . . . . . . 6 . . . Total Damage 87 | . . . . . . 87 . . . Kills 1 | . . . . . . 1 . . . Allies Corrupted . | . . . . . . . . . . Allies Melted . | . . . . . . . . . . Intel | -11 -10 -10 -10 -9 -8 -7 -6 -6 -6 ------- Run | Yrd Mat Min Exi Min Mat Fac Fac Was Fac Active Infowar (turns) . | . . . . . . . . . . Robot Analysis Total . | . . . . . . . . . . Derelict Logs Recovered 1 | . . 1 . . . . . . . Drone Launches 5 | . . . . . . . . . 5 Drone Recoveries 2 | . . . . . . . . . 2 Exploration | -11 -10 -10 -10 -9 -8 -7 -6 -6 -6 ------------- Run | Yrd Mat Min Exi Min Mat Fac Fac Was Fac Turns Passed 5089 | 76 750 137 398 179 690 878 841 163 977 Spaces Moved 4394 | 74 593 143 441 171 777 1105 347 162 581 Core 450 | 28 . . 1 . 4 . 5 95 317 Treads . | . . . . . . . . . . Legs 404 | . . . . . . . 337 67 . Wheels 1393 | 46 593 143 440 171 . . . . . Hover 34 | . . . . . . . . . 34 Flight 2113 | . . . . . 773 1105 5 . 230 Fastest Speed 40 | 50 90 80 80 95 50 50 130 50 40 Average Speed 74 | 85 90 88 86 95 53 50 156 89 62 Slowest Speed 1000 | 150 90 90 200 95 700 150 1000 270 170 Overloaded Moves . | . . . . . . . . . . Propulsion Burnouts . | . . . . . . . . . . Robots Hopped 10 | . . . . . 7 3 . . . Potential Cave-ins . | . . . . . . . . . . Cave-ins Triggered . | . . . . . . . . . . Exploration Rate (%) 41 | 4 89 38 65 39 43 27 8 83 14 Regions Visited 9 Branch Regions 3 Pre-discovered Areas 1 | . . 1 . . . . . . . Known Exits Taken . | . . . . . . . . . . Unknown Exits Taken 7 | 1 1 1 1 1 1 1 . . . Scrap Searched 2 | . . 2 . . . . . . . Spaces Dug 7 | . . . . . . 1 . . 6 Terrain Destroyed 86 | . 30 . . . . 1 49 . 6 Melee 7 | . . . . . . 1 . . 6 Projectile . | . . . . . . . . . . AOE 79 | . 30 . . . . . 49 . . Terrain Rammed . | . . . . . . . . . . Walls Destroyed . | . . . . . . . . . . Machines Disabled . | . . . . . . . . . . Actions | -11 -10 -10 -10 -9 -8 -7 -6 -6 -6 --------- Run | Yrd Mat Min Exi Min Mat Fac Fac Was Fac Total 5879 | 83 761 147 457 187 972 1407 520 172 1173 Wait 1091 | . 113 . . 16 104 234 71 . 553 Move 4366 | 73 592 142 440 170 762 1098 347 161 581 Hop 10 | . . . . . 7 3 . . . Pick Up 70 | 4 7 . 6 . 25 12 12 . 4 Fast Attach 51 | 6 7 1 2 . 5 11 6 3 10 Attach 33 | . 2 . 2 . 6 2 12 2 7 Detach 12 | . 3 . . . 2 1 2 2 2 Swap 29 | . 1 . 1 . 1 17 9 . . Drop 71 | . 10 1 6 . 20 22 6 1 5 Fire 131 | . 25 3 . . 40 5 55 3 . Melee 12 | . . . . . . 2 . . 10 Ram 3 | . 1 . . 1 . . . . 1 Kick . | . . . . . . . . . . Crush . | . . . . . . . . . . Escape Stasis . | . . . . . . . . . . Rewire . | . . . . . . . . . . Trap . | . . . . . . . . . . Miscellaneous . | . . . . . . . . . . Route ------- -11/Scrapyard -10/Materials (discovered 5 exits: [*Mat x3] / [*Min x2]) -10/Mines -10/Exiles -9/Mines -8/Materials -7/Factory (discovered 2 exits: *Fac / [*Low]) -6/Factory (discovered 2 exits: Low x2) -6/Waste -6/Factory History --------- Turn | Location | Event 6 | -11/Scrapyard | Discovered new exit (range 16) 77 | -11/Scrapyard | Entered Materials 217 | -10/Materials | Discovered new exit (range 11) 281 | -10/Materials | Discovered new exit (range 10) 323 | -10/Materials | Build established: Mutant 497 | -10/Materials | Discovered new exit (range 14) 538 | -10/Materials | Discovered new exit (range 14) 722 | -10/Materials | Repaired Wheel 755 | -10/Materials | Repaired Spread Laser 768 | -10/Materials | Discovered new exit (range 15) 827 | -10/Materials | Entered Mines 835 | -10/Mines | Learned location of Recycling (-7) 874 | -10/Mines | Assembled infested the area 960 | -10/Mines | Discovered new exit (range 5) 964 | -10/Mines | Entered Exiles 984 | -10/Exiles | Met 8R-AWN 997 | -10/Exiles | Met EX-HEX 1030 | -10/Exiles | Met EX-BIN 1039 | -10/Exiles | Aligned with FarCom system 1040 | -10/Exiles | Given EX-Vault access code 1079 | -10/Exiles | Opened EX-Vault 1119 | -10/Exiles | Warned to stay clear of 0b10 Research branches 1141 | -10/Exiles | Met EX-DEC 1256 | -10/Exiles | Found Flying Fortress v7 1347 | -10/Exiles | Discovered new exit (range 14) 1362 | -10/Exiles | Left Exiles lab with Flying Fortress v7 1362 | -10/Exiles | Entered Mines 1402 | -9/Mines | Discovered new exit (range 6) 1541 | -9/Mines | Entered Materials 1541 | -8/Materials | Evolved 4 slots: Propulsion x2, Utility x2 1660 | -8/Materials | Garrison activated, responded to threat 1781 | -8/Materials | Destroyed 7 combat bots 1800 | -8/Materials | Discovered new exit (range 16) 1829 | -8/Materials | Central database locked down 2179 | -8/Materials | Repaired Lgt. Armor Plating 2231 | -8/Materials | Entered Factory 2231 | -7/Factory | Evolved 2 slots: Utility x1, Weapon x1 2327 | -7/Factory | Fabricated Spread Laser (x2) 2530 | -7/Factory | Build established: Skirmisher 2610 | -7/Factory | Fabricated S-27 Virus (x4) 2629 | -7/Factory | Discovered new exit (range 16) 2916 | -7/Factory | Lost 3 allies 3098 | -7/Factory | Discovered new exit (range 15) 3109 | -7/Factory | Entered another Factory area 3109 | -6/Factory | Evolved 2 slots: Utility x2 3251 | -6/Factory | Identified exit to Lower Caves 3277 | -6/Factory | Garrison activated, responded to threat 3368 | -6/Factory | Build established: Gunner 3584 | -6/Factory | Destroyed 7 combat bots 3845 | -6/Factory | Build established: Tank 3950 | -6/Factory | Sucked down chute 3950 | -6/Factory | Entered Waste 3997 | -6/Waste | Spotted C-40 Crusher 4000 | -6/Waste | Spotted C-40 Crusher 4015 | -6/Waste | Crushed by Compactor (1 part destroyed, 2 dropped) 4018 | -6/Waste | Crushed by Compactor (1 part destroyed, 2 dropped) 4022 | -6/Waste | Crushed by Compactor (1 part destroyed, 2 dropped) 4031 | -6/Waste | Found Gamma Bomb Array 4048 | -6/Waste | Crushed by Compactor (1 part destroyed, 2 dropped) 4059 | -6/Waste | Spotted C-40 Crusher 4063 | -6/Waste | Spotted C-40 Crusher 4065 | -6/Waste | Crushed by Compactor (1 part destroyed, 2 dropped) 4069 | -6/Waste | Spotted C-40 Crusher 4090 | -6/Waste | Spotted C-40 Crusher 4096 | -6/Waste | Lost 5 parts (2n1u2w) 4105 | -6/Waste | Discovered new exit (range 13) 4113 | -6/Waste | Entered Factory 4325 | -6/Factory | Build established: Mutant 4764 | -6/Factory | Core integrity fell below 50% 5069 | -6/Factory | Core integrity fell below 20% 5090 | -6/Factory | Destroyed by S-27 Virus with Autogun Last Messages --------------- Replicator. 04827_ Acquired 18 matter. 04846_ Penetrated by Slug. 04853_ Cryofiber Web destroyed. 04859_ Triggered Heavy Explosive Trap. 04859_ An explosion rips through the floor. 04859_ U-05 Engineer destroyed. 04860_ Acquired 14 matter. 05028_ Connecting with Repair Station... 05028_ ALERT: Suspicious activity at Repair Station F001. Dispatching Investigation squad. 05034_ U-05 Engineer builds a Wall. 05052_ Nuclear Pulse Thruster destroyed. 05068_ W-25 Informer sends out distress signal. 05074_ Acquired Angular Momentum Engine. 05081_ Destroyed VTOL Module. 05081_ S-27 Virus system corrupted by crushing effect. 05090_ Imp. Core Shielding destroyed. [Achievement: Just Browsing] Map ----- +----------------------------------------------------+ | ?# """" """" + #?????????????????????# ?? | | ?# # #?????????????????????? ?? | | ?# """" # #???????????????????????? ?? | | ?# """" " "" # #????????????????????????????? | | ?# """" "R"" # #????????????????????????????? | | ?# """" """" # ##???????????????????????????? | | ## # ##???????????????????????????? | | #"############# ##???????????????????????????? | | ############### ##???????????????????????????? | | """"""""" # # ?????????????????????? | | """"""""" # #?? ?????????????????????? | | """"""""" # #????? ??????????????????? | | """"""""" # #????????"???????????????????? | | """"""""" # #????????????????????????????? | | """"""""" + +????????????????????????????? | | # #????????????????????????????? | | # ##########???????????????????? | | ##+############ # #???????????????????? | | ## ## !! # g # "" #???????????????????? | | ?# + !! # g# "G |#???????????????????? | | ?#### # # "" #???????????????????? | | ????# /w /g #???????????????????? | | ????# # # """ s #???????????????????? | | ????# # # """ss #???????????????????? | | ???## ! # # """ #???????????????????? | | ???#" # # s @ #???????????????????? | | ???##"######### ##########???????????????????? | | ???? ?????? #????????????????????????????? | | ???? ????? +????????????????????????????? | | ??? ??? #????????????????????????????? | | ??? ?? #????????????????????????????? | | ?? #????????????????????????????? | | ?? #####+########?????????????????????????????? | | ? #??????????????????????????????????????????? | | ? ???????????????????????????????????????????? | | # ???????????????????????????????????????????? | | #^ ???????????????????????????????????????????? | | # ???????????????????????????????????????????? | | # ???????????????????????????????????????????? | | ? ???????????????????????????????????????????? | | ??? ???????????????????????????????????????????? | | ?????????????????????????????????????????????????? | | ?????????????????????????????????????????????????? | | ?????????????????????????????????????????????????? | | ?????????????????????????????????????????????????? | | ?????????????????????????????????????????????????? | | ?????????????????????????????????????????????????? | | ?????????????????????????????????????????????????? | | ?????????????????????????????????????????????????? | | ?????????????????????????????????????????????????? | +----------------------------------------------------+ Best States ------------- Heat Dissipation 75 Coolant Potential 65 Energy Generation 18 Energy Capacity 300 Matter Stores 300 Matter Capacity 300 Sight Range 16 Terrain Scan Density 10 Base Temperature (-) 100 Armor Coverage 450 Resistance: TH 20 Resistance: EM 25 Core Shielding 30 Propulsion Shielding 66 Evasion (%) 62 Targeting Accuracy 8 Melee Accuracy 16 Core Analysis 6 Recoil Reduction 1 Particle Charging 15 Item Schematics ----------------- Spread Laser | -8/Materials | Scanalyzed Robot Schematics ------------------ None Fabricated ------------ Spread Laser | x2 | -7/Factory S-27 Virus | x4 | -7/Factory | Preloaded Repaired ---------- Wheel | 35% | -10/Materials Spread Laser | 55% | -10/Materials Lgt. Armor Plating | 66% | -8/Materials Studied --------- Spread Laser | -8/Materials | Hacked Alien Tech Used ----------------- None Achievements -------------- DIY Cooler Just Browsing My Command Is Your Wish Oh No You Don't! Challenges ------------ None Game ------ Seed CannonSixParser Manual? 0 Play Time 01:45:12 Cumulative 40.1 hours Start 2026.08.14 @ 01:16:55 End 2026.08.14 @ 12:02:56 Sessions 4 Manual Loads 0 Difficulty Rogue Special Mode None Game No. 31 Rogue 31 Adventurer 0 Explorer 0 Win Type - Total 0 Types 0/0/0/0/0/0/0/0/0/0 Lore% 11 Gallery% 25 Achievement% 20 Wizard Run 0 Options --------- Layout 1 ASCII 0 Keyboard 1 Movement Vi Keybinds 0 Fullscreen 2 Font 24/Smallcaps Map View 50x35 Zoom Use 0% Tactical HUD 1 Map Filters NONE Filters NONE Steam 1 RUN: 9eed6efb-26f3-4fab-81b0-1f94f6540e50